bitfinex/quotes_SOLUSD_20240702
["timestamp","ask_amount","ask_price","bid_price","bid_amount"]
[1719925331523,6.6315,150.8,150.71,21.32652541]
[1719925331714,6.6315,150.8,150.72,6.0189]
[1719925333312,6.632,150.79,150.72,6.0189]
[1719925334030,6.6313,150.8,150.72,6.0189]
[1719925335427,21.8658,150.81,150.72,6.0189]
[1719925335609,20.0,150.8,150.72,6.0189]
[1719925336307,20.0,150.8,150.73,1.32645043]
[1719925336513,20.0,150.8,150.72,6.0189]
[1719925338620,26.6304,150.82,150.73,1.32636146]
[1719925339009,20.0,150.82,150.74,1.32636207]
[1719925339434,26.6305,150.82,150.73,20.0]
[1719925339918,20.0,150.82,150.74,15.099]
[1719925342631,26.6304,150.82,150.74,15.099]
[1719925342935,20.0,150.82,150.74,15.099]
[1719925343118,6.6305,150.82,150.74,15.099]
[1719925343834,13.54,150.81,150.76,13.54]
[1719925344139,13.54,150.82,150.74,15.099]
[1719925344314,13.54,150.82,150.77,13.54]
[1719925345309,13.54,150.82,150.74,15.099]
[1719925345516,13.54,150.82,150.77,13.54]
[1719925346212,13.54,150.81,150.74,15.099]
[1719925346525,13.54,150.79,150.74,28.639]
[1719925346948,13.54,150.81,150.76,13.54]
[1719925347836,20.0,150.83,150.74,15.099]
[1719925348015,20.0,150.83,150.8,13.54]
[1719925348216,20.1691,150.85,150.8,13.54]
[1719925348411,20.0,150.84,150.8,13.54]
[1719925348818,6.6291,150.85,150.8,13.54]
[1719925349023,13.54,150.85,150.81,1.32600231]
[1719925349313,6.84175768,150.87,150.82,13.54]
[1719925349636,20.1677,150.88,150.83,14.86580204]
[1719925350032,6.6282,150.87,150.83,13.54]
[1719925350223,13.54,150.87,150.8,16.4997]
[1719925350420,20.1683,150.87,150.82,13.54]
[1719925350620,13.54,150.88,150.83,14.86570622]
[1719925351127,13.54,150.88,150.83,13.54]
[1719925352628,15.4042,150.93,150.84,1.32568402]
[1719925352814,13.54,150.9,150.85,13.54]
[1719925353129,6.6267,150.91,150.86,1.32558943]
[1719925353335,13.54,150.9,150.86,1.32558943]
[1719925353518,20.1667,150.91,150.86,14.86558943]
[1719925353717,20.1667,150.91,150.86,13.54]
[1719925353931,20.1669,150.9,150.85,13.54]
[1719925354431,20.1674,150.89,150.8,90.6297]
[1719925354621,13.54,150.88,150.83,13.54]
[1719925354828,6.6274,150.89,150.83,13.54]
[1719925355017,13.54,150.88,150.83,13.54]
[1719925355219,20.1678,150.88,150.83,13.54]
[1719925355418,13.54,150.88,150.83,13.54]
[1719925356220,13.54,150.89,150.84,13.54]
[1719925357125,13.54,150.89,150.85,1.32570023]
[1719925358241,13.54,150.89,150.8,50.0097]
[1719925358242,13.54,150.88,150.8,36.4697]
[1719925358445,13.54,150.86,150.8,16.4997]
[1719925358734,13.54,150.85,150.8,30.0397]
[1719925358935,13.54,150.84,150.8,16.4997]
[1719925359921,13.54,150.85,150.8,30.0397]
[1719925360327,13.54,150.84,150.8,16.4997]
[1719925361223,6.6292,150.85,150.78,6.0163]
[1719925361543,13.54,150.83,150.79,13.54]
[1719925361930,13.54,150.83,150.78,6.0163]
[1719925362333,6.6302,150.83,150.76,16.2875]
[1719925362536,13.54,150.81,150.76,29.8275]
[1719925362735,13.54,150.8,150.76,16.2875]
[1719925362943,13.54,150.81,150.76,29.8275]
[1719925363444,13.54,150.8,150.76,16.2875]
[1719925364535,13.54,150.79,150.76,16.2875]
[1719925365637,6.6301,150.83,150.76,16.2875]
[1719925365945,20.0,150.82,150.78,13.54]
[1719925366530,6.84249788,150.85,150.79,13.54]
[1719925366737,6.6287,150.86,150.79,13.54]
[1719925366952,13.54,150.84,150.79,13.54]
[1719925367644,6.6296,150.84,150.78,13.54]
[1719925367856,20.0,150.83,150.76,16.2875]
[1719925368069,20.0,150.85,150.76,16.2875]
[1719925368232,16.5741,150.84,150.76,16.2875]
[1719925368439,20.0,150.83,150.76,16.2875]
[1719925368643,6.6306,150.82,150.76,16.2875]
[1719925368854,20.0,150.81,150.76,16.2875]
[1719925369060,20.0,150.83,150.76,16.2875]
[1719925369432,20.0,150.84,150.76,16.2875]
[1719925369833,50.02044818,150.87,150.78,6.3686]
[1719925369834,6.84574818,150.87,150.78,6.3686]
[1719925370149,6.6281,150.88,150.79,1.32589538]
[1719925370343,6.6281,150.88,150.8,1.32589175]
[1719925370538,6.6274,150.89,150.8,1.32589175]
[1719925370861,6.6274,150.89,150.81,15.9215]
[1719925371049,6.6274,150.89,150.82,1.32576784]
[1719925371234,6.6278,150.88,150.83,1.32577004]
[1719925371658,6.6278,150.88,150.81,15.9215]
[1719925371855,6.84714749,150.91,150.81,15.9215]
[1719925371856,6.6282,150.87,150.81,15.9215]
[1719925372932,23.41344749,150.91,150.81,15.9215]
[1719925372933,6.6287,150.86,150.81,15.9215]
[1719925373139,6.6294,150.85,150.81,15.9215]
[1719925373378,6.6299,150.84,150.78,6.3686]
[1719925373679,16.571,150.87,150.78,6.3686]
[1719925373841,20.0,150.86,150.78,6.3686]
[1719925374335,20.0,150.86,150.77,16.1131]
[1719925374541,6.6305,150.82,150.77,16.1131]
[1719925374735,27.08,150.83,150.72,16.1131]
[1719925374959,20.0,150.82,150.72,16.1131]
[1719925375172,6.63,150.83,150.73,1.32655982]
[1719925375333,6.3097,150.86,150.72,36.0531]
[1719925375531,6.6304,150.82,150.72,36.0531]
[1719925375731,6.6304,150.82,150.72,16.1131]
[1719925375960,6.6304,150.82,150.73,20.0]
[1719925376268,65.0,150.85,150.73,39.94]
[1719925376560,6.6301,150.83,150.73,39.94]
[1719925377958,6.6297,150.84,150.73,39.94]
[1719925378157,20.0,150.83,150.73,39.94]
[1719925378362,26.6299,150.83,150.73,20.0]
[1719925378544,20.0,150.83,150.73,20.0]
[1719925378944,6.6305,150.82,150.73,20.0]
[1719925379255,26.6301,150.83,150.73,20.0]
[1719925379761,6.6304,150.82,150.73,20.0]
[1719925379947,26.6308,150.81,150.72,16.1131]
[1719925380149,20.0,150.81,150.72,16.1131]
[1719925380470,6.6305,150.82,150.72,16.1131]
[1719925380662,20.0,150.81,150.72,36.0531]
[1719925381358,20.0,150.82,150.72,36.0531]
[1719925381747,26.6304,150.82,150.72,36.0531]
[1719925381953,6.6309,150.81,150.72,16.1131]
[1719925382166,6.6313,150.8,150.72,16.1131]
[1719925382574,6.6328,150.77,150.72,16.1131]
[1719925382869,6.6314,150.8,150.72,16.1131]
[1719925383068,20.0,150.79,150.72,16.1131]
[1719925383760,26.6317,150.79,150.72,16.1131]
[1719925383952,20.0,150.79,150.7,6.1153]
[1719925384265,27.08,150.81,150.7,6.1153]
[1719925384266,6.6327,150.77,150.7,6.1153]
[1719925384652,36.5784,150.8,150.7,6.1153]
[1719925384861,6.6319,150.79,150.7,6.1153]
[1719925385057,20.0,150.78,150.7,6.1153]
[1719925385368,32.7491,150.83,150.64,32.31067314]
[1719925385369,3.45088556,151.02,150.83,33.6678]
[1719925385664,13.92595125,151.01,150.9,27.08]
[1719925385862,0.8637174,151.03,150.91,41.01773155]
[1719925386067,13.92188419,151.02,150.92,1.32481946]
[1719925386270,0.8637174,151.03,150.92,21.01773155]
[1719925386451,0.8637174,151.03,150.88,8.82066081]
[1719925386655,6.6239,150.97,150.85,26.536113]
[1719925386970,6.6243,150.96,150.86,20.0]
[1719925387174,6.6243,150.96,150.84,27.08]
[1719925387175,6.6243,150.96,150.85,20.0]
[1719925387668,27.08,151.01,150.85,20.0]
[1719925387870,6.6248,150.95,150.85,20.0]
[1719925388053,16.5571,151.0,150.84,27.08]
[1719925388260,6.4681,150.94,150.79,6.0341]
[1719925388474,6.6265,150.91,150.8,27.08]
[1719925388664,6.4681,150.94,150.8,27.08]
[1719925388665,6.6261,150.92,150.8,47.02]
[1719925388975,20.0,150.91,150.8,47.02]
[1719925389275,6.627,150.9,150.8,27.08]
[1719925389577,20.0,150.91,150.8,27.08]
[1719925389759,6.4681,150.94,150.8,27.08]
[1719925389760,6.6277,150.88,150.8,27.08]
[1719925389957,6.6306,150.82,150.75,6.2194]
[1719925390159,6.63,150.83,150.75,6.2194]
[1719925390361,20.0,150.87,150.75,6.2194]
[1719925390570,20.0,150.87,150.77,27.08]
[1719925390768,20.0,150.91,150.77,27.08]
[1719925390975,6.6287,150.86,150.77,27.08]
[1719925391268,20.0,150.85,150.77,27.08]
[1719925391674,20.0,150.85,150.77,47.02]
[1719925391869,43.646,150.92,150.77,19.94]
[1719925391870,26.6279,150.88,150.77,19.94]
[1719925392053,6.6286,150.87,150.75,26.1594]
[1719925392248,20.0,150.86,150.76,39.94]
[1719925392467,20.0,150.88,150.76,39.94]
[1719925392679,6.6282,150.87,150.76,39.94]
[1719925392865,20.0,150.86,150.76,39.94]
[1719925393367,6.6271,150.9,150.76,39.94]
[1719925393569,32.9109,150.95,150.76,39.94]
[1719925393957,6.6275,150.89,150.76,39.94]
[1719925394152,6.6268,150.91,150.76,39.94]
[1719925394355,32.9109,150.95,150.76,39.94]
[1719925394675,6.6267,150.91,150.77,1.32568238]
[1719925394884,26.6269,150.9,150.76,39.94]
[1719925395073,20.0,150.9,150.76,39.94]
[1719925395276,20.0,150.93,150.76,139.94]
[1719925395579,23.18969061,150.95,150.78,19.94]
[1719925395777,6.6259,150.93,150.8,19.94]
[1719925395980,6.6259,150.93,150.82,19.94]
[1719925396185,6.6259,150.93,150.83,41.26540134]
[1719925396386,6.6247,150.95,150.84,42.0625]
[1719925396579,6.6247,150.95,150.84,62.0625]
[1719925396755,6.6247,150.95,150.85,1.32526061]
[1719925397056,6.6247,150.95,150.86,1.32526074]
[1719925397260,6.6253,150.94,150.86,1.32526074]
[1719925398262,6.6247,150.95,150.85,39.94]
[1719925399774,6.6238,150.98,150.85,39.94]
[1719925399985,20.0,150.97,150.85,39.94]
[1719925400149,6.83458912,151.0,150.87,19.94]
[1719925400472,6.83458912,151.0,150.86,30.45]
[1719925400473,32.5247,151.05,150.89,19.94]
[1719925400652,6.0908,151.06,150.91,19.94]
[1719925400968,6.6221,151.01,150.92,27.46137363]
[1719925401165,6.6226,151.0,150.92,26.1367]
[1719925401350,6.0908,151.06,150.92,26.1367]
[1719925401351,6.6233,150.99,150.92,26.1367]
[1719925402476,6.6226,151.0,150.93,1.32482061]
[1719925402769,6.6232,150.99,150.92,26.1367]
[1719925402977,6.6238,150.98,150.92,6.1367]
[1719925403364,6.6238,150.97,150.92,6.1367]
[1719925403760,6.6248,150.95,150.86,6.1737]
[1719925403954,6.6254,150.94,150.87,20.0]
[1719925404156,6.6248,150.95,150.87,20.0]
[1719925404356,6.6234,150.98,150.87,39.94]
[1719925404576,6.6238,150.97,150.87,39.94]
[1719925404770,6.6244,150.96,150.87,20.0]
[1719925404969,33.1574,151.01,150.87,20.0]
[1719925405182,65.0,151.0,150.87,20.0]
[1719925405557,65.0,151.0,150.88,1.32512094]
[1719925406451,6.6243,150.96,150.88,1.32512094]
[1719925407173,6.6248,150.95,150.87,20.0]
[1719925407979,6.6243,150.96,150.87,20.0]
[1719925408985,6.6239,150.97,150.88,1.32512176]
[1719925410081,6.6234,150.98,150.88,1.32512176]
[1719925410292,6.623,150.99,150.88,1.32512176]
[1719925410591,6.6243,150.96,150.87,39.94]
[1719925410880,16.5567,151.0,150.87,39.94]
[1719925410881,6.6239,150.97,150.87,39.94]
[1719925411062,6.6243,150.96,150.87,39.94]
[1719925411260,16.5589,150.98,150.87,39.94]
[1719925411461,6.6248,150.95,150.87,39.94]
[1719925411763,6.6243,150.96,150.87,39.94]
[1719925412958,6.6239,150.97,150.87,39.94]
[1719925413176,6.623,150.99,150.87,39.94]
[1719925413371,6.623,150.99,150.88,1.32500793]
[1719925414272,6.6234,150.98,150.88,1.32500793]
[1719925414467,23.38780118,151.01,150.89,36.1382]
[1719925414672,6.6234,150.98,150.9,20.0]
[1719925414864,6.6236,150.98,150.9,20.0]
[1719925415066,6.623,150.99,150.9,39.94]
[1719925415262,6.6236,150.98,150.9,39.94]
[1719925415663,6.6239,150.97,150.9,20.0]
[1719925415965,6.6244,150.96,150.9,20.0]
[1719925416570,6.6239,150.97,150.9,20.0]
[1719925417663,23.38780118,151.01,150.9,20.0]
[1719925418461,6.6238,150.97,150.9,20.0]
[1719925418662,6.6235,150.98,150.9,20.0]
[1719925418961,6.623,150.99,150.9,20.0]
[1719925419163,6.6234,150.98,150.9,20.0]
[1719925420175,6.6234,150.98,150.91,1.32494292]
[1719925420773,6.6238,150.97,150.9,20.0]
[1719925421259,6.6235,150.98,150.91,1.32501497]
[1719925421665,6.6235,150.98,150.9,20.0]
[1719925422274,6.6235,150.98,150.91,1.32495004]
[1719925422479,6.6235,150.98,150.9,20.0]
[1719925422678,6.83210118,151.01,150.91,33.2627]
[1719925422875,0.8637174,151.03,150.92,20.0]
[1719925423075,6.6226,151.0,150.93,1.32476752]
[1719925424066,6.6226,151.0,150.92,20.0]
[1719925424406,6.6226,151.0,150.93,1.32476317]
[1719925424683,6.6221,151.01,150.92,39.94]
[1719925424884,6.6225,151.0,150.92,20.0]
[1719925425488,6.6225,151.0,150.93,1.32479773]
[1719925426791,6.6225,151.0,150.94,1.32479774]
[1719925426988,7.69894397,151.03,150.92,39.94]
[1719925427185,6.6219,151.02,150.92,39.94]
[1719925427371,6.6221,151.01,150.92,20.0]
[1719925427972,0.8637174,151.03,150.93,1.32473721]
[1719925428192,6.6217,151.02,150.93,1.32473721]
[1719925429274,0.8637174,151.03,150.94,46.96]
[1719925429477,0.8637174,151.03,150.95,20.0]
[1719925429788,7.4850174,151.03,150.95,20.0]
[1719925430293,0.8637174,151.03,150.95,20.0]
[1719925431379,0.8637174,151.03,150.96,26.1798]
[1719925431978,0.8637174,151.03,150.96,6.2398]
[1719925432498,0.8637174,151.03,150.98,15.3413]
[1719925432904,0.8637174,151.03,150.99,20.0]
[1719925433776,0.8637174,151.03,150.98,15.3413]
[1719925434603,7.4853174,151.03,150.98,15.3413]
[1719925434782,0.8637174,151.03,150.98,15.3413]
[1719925434984,7.4849174,151.03,150.98,15.3413]
[1719925435681,0.8637174,151.03,150.98,15.3413]
[1719925435998,7.4849174,151.03,150.98,15.3413]
[1719925436507,0.8637174,151.03,150.98,15.3413]
[1719925438397,7.4849174,151.03,150.98,15.3413]
[1719925438584,0.8637174,151.03,150.98,15.3413]
[1719925440216,7.4851174,151.03,150.98,15.3413]
[1719925440705,0.8637174,151.03,150.96,6.2398]
[1719925440911,6.6221,151.01,150.96,6.2398]
[1719925441113,0.8637174,151.03,150.96,6.2398]
[1719925441282,6.6222,151.01,150.96,6.2398]
[1719925441484,0.8637174,151.03,150.96,6.2398]
[1719925441683,7.4851174,151.03,150.96,6.2398]
[1719925441993,6.6217,151.02,150.96,6.2398]
[1719925442195,7.4850174,151.03,150.96,6.2398]
[1719925442714,7.4849174,151.03,150.96,6.2398]
[1719925443190,7.4852174,151.03,150.96,6.2398]
[1719925443402,6.6216,151.02,150.96,6.2398]
[1719925443580,6.6225,151.0,150.96,6.2398]
[1719925443783,16.5542,151.02,150.96,6.2398]
[1719925443983,6.6226,151.0,150.96,6.2398]
[1719925444292,6.6217,151.02,150.96,6.2398]
[1719925444488,0.8637174,151.03,150.96,6.2398]
[1719925444703,6.6218,151.02,150.96,6.2398]
[1719925445325,0.8637174,151.03,150.96,6.2398]
[1719925445477,6.6226,151.0,150.94,16.5378]
[1719925446199,6.6218,151.02,150.94,16.5378]
[1719925446385,6.622,151.01,150.94,16.5378]
[1719925446702,6.6245,150.96,150.88,22.5441]
[1719925447081,6.6239,150.97,150.88,22.5441]
[1719925447684,6.6234,150.98,150.88,22.5441]
[1719925448585,6.6234,150.98,150.89,20.0]
[1719925448784,6.6239,150.97,150.89,20.0]
[1719925448984,6.6234,150.98,150.89,20.0]
[1719925449211,6.6238,150.97,150.89,20.0]
[1719925449393,6.6238,150.97,150.9,1.32504101]
[1719925449687,6.6238,150.97,150.89,20.0]
[1719925452086,6.6242,150.96,150.89,20.0]
[1719925453798,6.6247,150.95,150.89,20.0]
[1719925454207,16.5598,150.97,150.88,22.5441]
[1719925454421,6.6256,150.93,150.88,22.5441]
[1719925454721,65.0,150.96,150.88,22.5441]
[1719925454722,20.0,150.96,150.88,22.5441]
[1719925455087,6.6254,150.94,150.88,22.5441]
[1719925455704,20.0,150.96,150.88,22.5441]
[1719925455705,6.6248,150.95,150.88,22.5441]
[1719925455907,20.0,150.96,150.88,22.5441]
[1719925456111,6.624,150.97,150.88,22.5441]
[1719925457103,6.6242,150.96,150.88,22.5441]
[1719925457308,6.6255,150.94,150.88,22.5441]
[1719925457621,6.6247,150.95,150.88,22.5441]
[1719925458417,36.559,150.98,150.88,22.5441]
[1719925458418,6.6244,150.96,150.88,22.5441]
[1719925458588,6.6247,150.95,150.88,22.5441]
[1719925458921,6.6244,150.96,150.88,22.5441]
[1719925459498,6.6247,150.95,150.88,22.5441]
[1719925460505,6.6248,150.95,150.88,22.5441]
[1719925460701,20.0,150.98,150.88,22.5441]
[1719925461301,6.6247,150.95,150.88,22.5441]
[1719925462199,6.6244,150.96,150.88,22.5441]
[1719925462897,20.0,150.98,150.88,22.5441]
[1719925463111,6.6238,150.97,150.88,42.4841]
[1719925466422,6.6243,150.96,150.88,42.4841]
[1719925466800,20.0,150.99,150.88,42.4841]
[1719925467102,6.6237,150.98,150.89,20.0]
[1719925467516,6.6238,150.97,150.9,1.32497324]
[1719925467815,13.46102107,151.0,150.91,19.94]
[1719925468113,0.8637174,151.03,150.93,6.2841]
[1719925468820,6.6225,151.0,150.93,6.2841]
[1719925469905,6.6229,150.99,150.93,6.2841]
[1719925470096,0.8637174,151.03,150.93,6.2841]
[1719925470305,0.8637174,151.03,150.9,15.3508]
[1719925470306,6.6245,150.96,150.9,15.3508]
[1719925471622,6.6249,150.95,150.9,15.3508]
[1719925471803,27.02,151.0,150.9,15.3508]
[1719925472112,6.624,150.97,150.9,15.3508]
[1719925472518,6.6235,150.98,150.9,15.3508]
[1719925472725,6.6238,150.97,150.9,15.3508]
[1719925473305,6.6242,150.96,150.9,15.3508]
[1719925473907,6.6249,150.95,150.9,15.3508]
[1719925474524,6.6243,150.96,150.9,15.3508]
[1719925475347,6.6239,150.97,150.9,15.3508]
[1719925476121,6.6239,150.97,150.91,1.32507475]
[1719925476310,6.6243,150.96,150.9,15.3508]
[1719925477116,20.0,150.99,150.9,15.3508]
[1719925477117,6.6239,150.97,150.9,15.3508]
[1719925477523,6.6242,150.96,150.9,15.3508]
[1719925478107,6.6247,150.95,150.9,15.3508]
[1719925479231,6.6256,150.93,150.9,15.3508]
[1719925479456,36.6262,150.92,150.9,15.3508]
[1719925479829,36.6262,150.92,150.89,6.4977]
[1719925480250,30.0,150.92,150.89,6.4977]
[1719925480413,36.626,150.92,150.86,15.5564]
[1719925480616,30.0,150.92,150.86,15.5564]
[1719925480815,30.0,150.92,150.87,1.32550877]
[1719925481120,30.0,150.92,150.86,15.5564]
[1719925482242,36.626,150.92,150.86,15.5564]
[1719925482947,30.0,150.92,150.86,15.5564]
[1719925484518,6.6248,150.95,150.86,15.5564]
[1719925484829,15.9587,150.98,150.86,15.5564]
[1719925484830,6.6253,150.94,150.86,15.5564]
[1719925486232,6.6248,150.95,150.86,15.5564]
[1719925486547,6.6252,150.94,150.86,15.5564]
[1719925489042,6.6256,150.93,150.86,15.5564]
[1719925489422,16.5596,150.97,150.86,15.5564]
[1719925489423,6.6261,150.92,150.86,15.5564]
[1719925489745,6.6252,150.94,150.86,15.5564]
[1719925489924,6.6248,150.95,150.86,15.5564]
[1719925490129,16.5596,150.97,150.86,15.5564]
[1719925490331,6.6262,150.92,150.86,15.5564]
[1719925490641,6.6257,150.93,150.86,15.5564]
[1719925492133,6.626,150.92,150.86,15.5564]
[1719925492549,6.6265,150.91,150.86,15.5564]
[1719925493153,6.6265,150.91,150.85,6.2706]
[1719925493853,13.53,150.89,150.85,6.2706]
[1719925496537,43.53,150.88,150.82,16.1927]
[1719925496729,13.53,150.87,150.83,33.53]
[1719925497131,30.0,150.88,150.83,33.53]
[1719925497333,13.53,150.87,150.83,33.53]
[1719925497637,13.53,150.87,150.83,20.0]
[1719925498329,13.53,150.87,150.82,16.1927]
[1719925498637,13.53,150.86,150.82,29.7227]
[1719925498836,13.53,150.86,150.82,16.1927]
[1719925499354,13.53,150.85,150.82,16.1927]
[1719925500138,30.0,150.88,150.82,29.7227]
[1719925500321,43.53,150.88,150.83,13.53]
[1719925501031,13.53,150.88,150.83,13.53]
[1719925503540,6.6274,150.89,150.83,13.53]
[1719925503738,13.53,150.88,150.83,13.53]
[1719925503939,13.53,150.87,150.82,29.7227]
[1719925504447,20.1582,150.87,150.82,29.7227]
[1719925505750,13.53,150.87,150.83,1.32588181]
[1719925505950,20.1582,150.87,150.82,29.7227]
[1719925506448,13.53,150.86,150.82,16.1927]
[1719925506646,20.1597,150.84,150.8,6.2586]
[1719925506841,13.53,150.83,150.8,6.2586]
[1719925507334,6.6292,150.85,150.8,6.2586]
[1719925507652,13.53,150.84,150.8,6.2586]
[1719925510240,13.53,150.84,150.78,15.7942]
[1719925510552,13.53,150.83,150.78,29.3242]
[1719925510735,13.53,150.85,150.8,13.53]
[1719925511544,13.53,150.84,150.79,13.53]
[1719925511854,13.53,150.83,150.78,29.3242]
[1719925512042,60.95550619,150.88,150.79,13.53]
[1719925512239,13.53,150.85,150.78,15.7942]
[1719925512435,13.53,150.85,150.8,13.53]
[1719925513444,13.53,150.84,150.79,13.53]
[1719925513751,13.53,150.84,150.78,15.7942]
[1719925513956,13.53,150.83,150.78,29.3242]
[1719925515147,13.53,150.84,150.78,29.3242]
[1719925515933,13.53,150.84,150.79,13.53]
[1719925517457,6.6283,150.87,150.8,1.32615331]
[1719925517641,13.53,150.85,150.8,13.53]
[1719925517842,13.53,150.85,150.78,15.7942]
[1719925518054,13.53,150.85,150.79,13.53]
[1719925518443,6.6287,150.86,150.79,13.53]
[1719925518638,13.53,150.85,150.79,13.53]
[1719925519179,6.6282,150.87,150.79,13.53]
[1719925519468,6.1789,150.9,150.82,13.53]
[1719925519759,13.53,150.87,150.82,13.53]
[1719925521443,20.1582,150.87,150.82,13.53]
[1719925522367,6.84353955,150.9,150.82,13.53]
[1719925522570,13.53,150.89,150.84,13.53]
[1719925522863,20.1573,150.89,150.84,13.53]
[1719925524067,9.16007395,150.94,150.85,1.32567684]
[1719925524264,13.53,150.93,150.88,13.53]
[1719925524451,22.06949784,150.96,150.89,14.85540788]
[1719925524661,13.53,150.95,150.89,13.53]
[1719925524845,6.6252,150.94,150.89,13.53]
[1719925525868,38.87831901,150.98,150.87,13.53]
[1719925525869,20.1563,150.92,150.87,13.53]
[1719925526064,6.6265,150.91,150.84,16.3079]
[1719925526245,20.1565,150.91,150.85,20.0]
[1719925526448,20.1565,150.91,150.86,13.53]
[1719925526670,13.53,150.91,150.86,13.53]
[1719925528370,20.1569,150.9,150.85,33.53]
[1719925529171,13.53,150.9,150.85,33.53]
[1719925529566,16.5323,150.94,150.85,20.0]
[1719925529775,13.53,150.92,150.87,13.53]
[1719925529976,13.53,150.93,150.87,13.53]
[1719925530362,6.6243,150.96,150.89,13.53]
[1719925530554,29.05284506,150.98,150.89,13.53]
[1719925530762,13.53,150.95,150.9,14.85517865]
[1719925530957,6.6244,150.96,150.9,14.85517865]
[1719925530958,6.6244,150.96,150.9,13.53]
[1719925531165,6.6238,150.97,150.92,13.53]
[1719925531363,20.1538,150.97,150.92,13.53]
[1719925531556,6.6242,150.96,150.92,13.53]
[1719925532069,32.4526,150.98,150.87,6.5346]
[1719925532252,13.53,150.92,150.87,6.5346]
[1719925532453,13.53,150.92,150.87,20.0646]
[1719925532863,6.6252,150.94,150.87,20.0646]
[1719925533063,6.6256,150.93,150.88,13.53]
[1719925535559,6.6253,150.94,150.88,13.53]
[1719925535762,13.53,150.93,150.88,13.53]
[1719925535970,6.6253,150.94,150.88,13.53]
[1719925536169,13.53,150.93,150.88,13.53]
[1719925538179,13.53,150.91,150.86,13.53]
[1719925539075,13.53,150.92,150.87,13.53]
[1719925539265,13.53,150.93,150.87,13.53]
[1719925539490,13.53,150.93,150.85,20.0]
[1719925539491,6.6243,150.96,150.88,13.53]
[1719925539655,6.6243,150.96,150.89,13.53]
[1719925539862,13.53,150.95,150.89,13.53]
[1719925540178,6.6243,150.96,150.89,13.53]
[1719925540366,20.1547,150.95,150.89,13.53]
[1719925540572,13.53,150.94,150.89,13.53]
[1719925540778,6.6247,150.95,150.89,13.53]
[1719925540964,13.53,150.94,150.89,13.53]
[1719925541481,29.98334273,151.0,150.92,13.53]
[1719925541482,13.42614273,151.0,150.92,13.53]
[1719925541682,6.6227,151.0,150.93,14.85490199]
[1719925541975,13.53,150.99,150.93,14.85490199]
[1719925542275,6.6227,151.0,150.93,13.53]
[1719925542580,20.1535,150.98,150.92,13.53]
[1719925543085,13.53,150.97,150.92,13.53]
[1719925543658,13.53,150.96,150.91,13.53]
[1719925544678,13.53,150.97,150.9,16.6409]
[1719925544882,13.53,150.96,150.91,13.53]
[1719925545361,13.53,150.97,150.92,13.53]
[1719925545763,13.53,150.97,150.91,13.53]
[1719925546071,13.53,150.96,150.9,16.6409]
[1719925546275,13.53,150.96,150.91,13.53]
[1719925546581,6.6242,150.96,150.92,13.53]
[1719925546779,13.53,150.95,150.9,30.1709]